Cogmind - Beta 13 @@@ ROGUE MODE // 2024.04.17 @ 21:20:33 Player: Modulottie Result: Destroyed by Y-45 Defender with Heavy Assault Rifle Performance ------------- Evolutions (1) 500 Regions Visited (3) 600 Robots Destroyed (29) 145 Value Destroyed (912) 912 Prototype IDs (0) 0 Alien Tech Used (0) 0 Bonus (0) 0 TOTAL SCORE: 2157 Bonus ------- None Cogmind --------- Core Integrity 0/400 Matter 256/300 Energy 66/100 System Corruption 12% Temperature Cool (36) Movement Core (250) Ox4 Location -9/Storage Parts ------- > --- POWER (1) -------- (None) > --- PROPULSION (3) --- (None) > --- UTILITY (3) ------ Medium Storage Unit > --- WEAPON (2) ------- Heavy Hammer > --- INVENTORY (10) --- Light Nuclear Core Flight Unit Cesium-ion Thruster Cesium-ion Thruster Cesium-ion Thruster Cesium-ion Thruster Hacking Suite Light Assault Rifle Peak State ------------ > --- POWER ------------ Improved Ion Engine > --- PROPULSION ------- Improved Aluminum Leg Improved Aluminum Leg Improved Aluminum Leg > --- UTILITY ---------- Medium Storage Unit Light Armor Plating > --- WEAPON ----------- Heavy Assault Rifle Autogun > --- INVENTORY -------- Light Nuclear Core Cesium-ion Thruster Cesium-ion Thruster Cesium-ion Thruster Cesium-ion Thruster Hacking Suite Light Assault Rifle Light Assault Rifle Light Assault Rifle Heavy Hammer [Rating: 16] Favorites ----------- Power Ion Engine Engine Ion Engine Propulsion Aluminum Leg Treads Light Treads Leg Aluminum Leg Wheel Compact Wheel Flight Unit Flight Unit Utility Medium Storage Unit Device Structural Scanner Storage Medium Storage Unit Processor Improved Targeting Computer Protection Light Armor Plating Weapon Light Assault Rifle Energy Gun Beam Rifle Ballistic Gun Light Assault Rifle Impact Weapon Heavy Hammer Build | -11 -10 -9 -9 ------- Run | Yrd Mat Mat Sto Slots Evolved 2 | . . 2 . Power . | . . . . Propulsion 1 | . . 1 . Utility 1 | . . 1 . Weapon . | . . . . Parts Attached 35 | 7 2 8 18 Power 4 | 1 . 1 2 Engine 4 | 1 . 1 2 Core . | . . . . Reactor . | . . . . Propulsion 12 | 3 1 3 5 Treads 1 | . . . 1 Leg 9 | 2 1 3 3 Wheel 1 | 1 . . . Hover . | . . . . Flight 1 | . . . 1 Utility 5 | 1 1 2 1 Device 1 | . 1 . . Storage 2 | 1 . 1 . Processor 1 | . . 1 . Hackware . | . . . . Protection 1 | . . . 1 Artifact . | . . . . Weapon 14 | 2 . 2 10 Energy Gun 1 | . . 1 . Energy Cannon . | . . . . Ballistic Gun 11 | 2 . 1 8 Ballistic Cannon . | . . . . Launcher . | . . . . Special Weapon . | . . . . Impact Weapon 2 | . . . 2 Slashing Weapon . | . . . . Piercing Weapon . | . . . . Special Melee Weapon . | . . . . Unidentified Prototypes . | . . . . Parts Lost 18 | . . 6 12 Power 3 | . . 1 2 Propulsion 7 | . . 2 5 Utility 3 | . . 2 1 Weapon 5 | . . 1 4 Highest Loss Streak 5 | . . 4 5 To Critical Strikes 1 | . . 1 . Average Slot Usage (%) 79 | . 97 85 66 Engine 9 | . 14 10 5 Treads 1 | . . . 4 Leg 25 | . 28 28 22 Device 4 | . 11 6 . Storage 11 | . 14 11 11 Processor 1 | . . 5 . Energy Gun 4 | . . 8 4 Ballistic Gun 18 | . 28 13 16 Naked Turns . | . . . . Heaviest Build 26 | 13 14 22 26 Greatest Support 39 | 20 20 30 39 Greatest Overweight (x) 3 | 3 . 1 1 Average Overweight (x) . | . . . . Largest Inventory Capacity 10 | 8 8 10 10 Average Capacity 9 | 7 8 9 10 Most Carried 10 | 3 7 10 10 Average Carried 7 | 1 5 8 9 Final Capacity 10 | 8 8 10 10 Final Carried 10 | 3 7 10 8 Class Distribution -------------------- 78% | Mutant 21% | Scavenger-Mutant Dominant Class ---------------- Mutant | -10/Materials Scavenger-Mutant | -9/Materials Mutant | -9/Storage Resources | -11 -10 -9 -9 ----------- Run | Yrd Mat Mat Sto Matter Collected 796 | 261 53 170 312 Remotely . | . . . . Salvage Created 1178 | . 88 355 735 Parts 75 | . 5 27 43 Haulers Intercepted 1 | . . 1 . Recyclers Shooed . | . . . . Parts Field Recycled . | . . . . Retrieved Matter . | . . . . Parts Self-Destructed . | . . . . Prevented . | . . . . Kills | -11 -10 -9 -9 ------- Run | Yrd Mat Mat Sto Combat Hostiles Destroyed 27 | . 2 6 19 Guns 26 | . 2 6 18 Classes Destroyed 7 | . 1 4 2 Hauler 1 | . . 1 . Operator 1 | . . 1 . Swarmer 6 | . . . 6 Grunt 11 | . 2 3 6 Brawler 2 | . . 1 1 Duelist 1 | . . . 1 Sentry 7 | . . 2 5 Best Kill Streak 7 | . 2 3 7 Combat Bots Only 7 | . 2 3 7 Max Kills in Single Turn 1 | . 1 1 1 Gunslinging . | . . . . Exploded . | . . . . Melee . | . . . . Uniques/NPCs Destroyed . | . . . . Combat | -11 -10 -9 -9 -------- Run | Yrd Mat Mat Sto Hostile Shots Fired 230 | . 12 52 166 Missed 58 | . 3 8 47 Damage Taken 2505 | . 110 673 1722 Core 412 | . . 115 297 Absorbed by Shields . | . . . . Core Remaining (%) 100 | 100 100 . . Volleys Fired 106 | . 11 28 67 Largest 2 | . 2 2 2 Hottest 79 | . 40 79 79 Shots Fired 208 | . 22 56 130 Gun 208 | . 22 56 130 Cannon . | . . . . Launcher . | . . . . Special . | . . . . Kinetic 164 | . 22 34 108 Thermal 44 | . . 22 22 Explosive . | . . . . Electromagnetic . | . . . . Robot Hit Streak 30 | . 11 30 14 Robot Miss Streak 6 | . 2 2 6 Penetration Max . | . . . . Secondary Targets 3 | . . . 3 Max Gunslinging Chain 1 | . . . 1 Shots Hit Robots 156 | . 15 44 97 Core Hits 60 | . 7 14 39 Critical Kills . | . . . . Critical Parts Destroyed . | . . . . Critical Strikes 4 | . . 2 2 Burn 4 | . . 2 2 Melee Attacks 4 | . . . 4 Impact 4 | . . . 4 Slashing . | . . . . Piercing . | . . . . Sneak Attacks . | . . . . Combat Hostiles . | . . . . Follow-up Attacks . | . . . . Damage Inflicted 1850 | . 155 605 1090 Guns 1791 | . 155 605 1031 Cannons . | . . . . Explosions . | . . . . Melee 55 | . . . 55 Ramming 4 | . . . 4 Kinetic 1253 | . 155 343 755 Thermal 538 | . . 262 276 Explosive . | . . . . Electromagnetic . | . . . . Impact 55 | . . . 55 Slashing . | . . . . Piercing . | . . . . Highest Corruption 12 | . . 12 12 Average Corruption 11 | . . 11 12 Corruption Purged . | . . . . Corruption Blocked . | . . . . Effects 32 | . . 7 25 Message Errors 8 | . . 1 7 Matter Fused 6 | . . 1 5 Heat Flow Errors 3 | . . 3 . Energy Discharges 5 | . . . 5 Data Loss (minor) 4 | . . 1 3 Data Loss (major) 1 | . . . 1 Misfires 1 | . . . 1 Misdirections 1 | . . 1 . Weapon Failures 3 | . . . 3 Overload Shots . | . . . . Overflow Damage . | . . . . Projectiles . | . . . . Explosions . | . . . . Melee . | . . . . Knockbacks . | . . . . Impact . | . . . . Kinetic . | . . . . Secondary . | . . . . Self-Inflicted Damage . | . . . . Shots . | . . . . Rammed . | . . . . Targets Rammed 2 | . . . 2 Kicked 2 | . . . 2 Crushed . | . . . . Highest Temperature 240 | . 9 182 240 Average Temperature 52 | . 8 52 55 Received Heat Transfer 783 | . 63 210 510 Siege Activations . | . . . . Robots Corrupted . | . . . . Combat Hostiles . | . . . . Parts Fried . | . . . . Impact Corruptions . | . . . . Robots Melted 1 | . . . 1 Combat Hostiles 1 | . . . 1 Parts Melted 3 | . . 1 2 Heat Transferred 1665 | . . 814 851 Parts Sabotaged . | . . . . Parts Stolen . | . . . . Parts Stripped . | . . . . Power Chain Reactions . | . . . . Alert | -11 -10 -9 -9 ------- Run | Yrd Mat Mat Sto Peak Influence 302 | . 64 234 302 Initial 26 | . . 26 5 Average 102 | . 43 113 137 Maximum Alert Level 1 | . . 1 1 Low Security (%) 85 | 100 100 83 77 Level 1 14 | . . 16 22 Level 2 . | . . . . Level 3 . | . . . . Level 4 . | . . . . Level 5 . | . . . . High Security . | . . . . Max Security . | . . . . Squads Dispatched 7 | . . 2 5 Investigation . | . . . . Extermination . | . . . . Reinforcement 3 | . . 2 1 Assault . | . . . . Garrison 4 | . . . 4 Intercept . | . . . . Searches Triggered . | . . . . Construction Impeded . | . . . . Haulers Reinforced . | . . . . Active Scanning Responses . | . . . . Cargo Convoy Interrupts . | . . . . Stealth | -11 -10 -9 -9 --------- Run | Yrd Mat Mat Sto Distress Signals 2 | . 1 1 . Communications Jammed . | . . . . Distress Signals . | . . . . Times Spotted 44 | . 6 14 24 Peak Tracking Total 8 | . 4 7 8 Tactical Retreats . | . . . . Traps | -11 -10 -9 -9 ------- Run | Yrd Mat Mat Sto Traps Triggered 1 | . . . 1 Indirectly . | . . . . Trap Hack Attempts . | . . . . Triggered . | . . . . Disarmed . | . . . . Reprogrammed . | . . . . Reused . | . . . . Traps Extracted . | . . . . Installed . | . . . . Triggered . | . . . . Machines | -11 -10 -9 -9 ---------- Run | Yrd Mat Mat Sto Machines Disabled . | . . . . Max in Single Turn . | . . . . Machines Repaired . | . . . . Machines Dismantled . | . . . . Machines Sabotaged . | . . . . Overloaded Fab Kills . | . . . . Hacking | -11 -10 -9 -9 --------- Run | Yrd Mat Mat Sto Machines Accessed 4 | . 1 1 2 Terminals 4 | . 1 1 2 Fabricators . | . . . . Repair Stations . | . . . . Recycling Units . | . . . . Scanalyzers . | . . . . Garrison Access . | . . . . Total Hacks 12 | . 3 5 4 Successful 4 | . 1 2 1 Failed 8 | . 2 3 3 Catastrophic 3 | . . 2 1 Database Lockouts . | . . . . Manual 7 | . 1 4 2 Terminals 12 | . 3 5 4 Fabricators . | . . . . Repair Stations . | . . . . Recycling Units . | . . . . Scanalyzers . | . . . . Garrison Access . | . . . . Terminal Hacks 4 | . 1 2 1 Maintenance Status 1 | . . 1 . Zone Layout 3 | . 1 1 1 Fabricator Hacks . | . . . . Repair Station Hacks . | . . . . Recycling Unit Hacks . | . . . . Scanalyzer . | . . . . Garrison Access Hacks . | . . . . Unauthorized Hacks . | . . . . Terminals . | . . . . Fabricators . | . . . . Repair Stations . | . . . . Recycling Units . | . . . . Scanalyzers . | . . . . Garrison Access . | . . . . Data Cores Recovered . | . . . . Used . | . . . . Hacking Detections 2 | . . 1 1 Full Trace Events . | . . . . Feedback Events . | . . . . Feedback Blocked . | . . . . Robot Schematics Acquired . | . . . . Robots Built . | . . . . Authchips . | . . . . Time . | . . . . Total Robot Build Rating . | . . . . Part Schematics Acquired . | . . . . Parts Built . | . . . . Authchips . | . . . . Time . | . . . . Total Part Build Rating . | . . . . Parts Repaired . | . . . . Time . | . . . . Parts Recycled . | . . . . Recycled Matter . | . . . . Retrieved Matter . | . . . . Retrieved Components . | . . . . Parts Scanalyzed . | . . . . Part Schematics Acquired . | . . . . Parts Damaged . | . . . . Bothacking | -11 -10 -9 -9 ------------ Run | Yrd Mat Mat Sto Used RIF Installer . | . . . . Robots Hacked . | . . . . Non-combat . | . . . . Combat . | . . . . Robot Hacks Applied . | . . . . Relay Couplers Released . | . . . . Fabnet Peak Effective % . | . . . . Robots Rewired . | . . . . Allies Hacked . | . . . . Hacks Repelled . | . . . . Allies | -11 -10 -9 -9 -------- Run | Yrd Mat Mat Sto Total Allies . | . . . . Largest Group . | . . . . Highest-Rated Group . | . . . . Highest-Rated Ally . | . . . . Total Orders . | . . . . Ally Attacks . | . . . . Total Damage . | . . . . Kills . | . . . . Allies Corrupted . | . . . . Allies Melted . | . . . . Intel | -11 -10 -9 -9 ------- Run | Yrd Mat Mat Sto Robot Analysis Total . | . . . . Derelict Logs Recovered . | . . . . Drone Launches . | . . . . Drone Recoveries . | . . . . Exploration | -11 -10 -9 -9 ------------- Run | Yrd Mat Mat Sto Turns Passed 1380 | 71 306 411 592 Spaces Moved 760 | 47 208 221 284 Core 14 | 14 . . . Treads 5 | . . . 5 Legs 740 | 32 208 221 279 Wheels 1 | 1 . . . Hover . | . . . . Flight . | . . . . Fastest Speed 50 | 50 120 120 120 Average Speed 124 | 125 120 122 128 Slowest Speed 200 | 200 120 190 190 Overloaded Moves . | . . . . Propulsion Burnouts . | . . . . Robots Hopped . | . . . . Cave-ins Triggered . | . . . . Exploration Rate (%) 25 | 3 31 24 44 Regions Visited 3 Branch Regions 1 Pre-discovered Areas . | . . . . Known Exits Taken . | . . . . Unknown Exits Taken 3 | 1 1 1 . Scrap Searched . | . . . . Spaces Dug 2 | . . . 2 Terrain Destroyed 2 | . . . 2 Melee 2 | . . . 2 Projectile . | . . . . AOE . | . . . . Terrain Rammed . | . . . . Walls Destroyed . | . . . . Machines Disabled . | . . . . Actions | -11 -10 -9 -9 --------- Run | Yrd Mat Mat Sto Total 996 | 56 243 307 390 Wait 65 | . 20 34 11 Move 757 | 46 207 220 284 Hop . | . . . . Pick Up 13 | 2 3 8 . Fast Attach 21 | 7 1 4 9 Attach 5 | . . 1 4 Detach 3 | 1 . 1 1 Swap 9 | . 1 3 5 Drop 11 | . . 8 3 Fire 106 | . 11 28 67 Melee 4 | . . . 4 Ram . | . . . . Kick 2 | . . . 2 Crush . | . . . . Escape Stasis . | . . . . Rewire . | . . . . Trap . | . . . . Miscellaneous . | . . . . Route ------- -11/Scrapyard -10/Materials -9/Materials -9/Storage History --------- Turn | Location | Event 29 | -11/Scrapyard | Discovered new exit (range 14) 72 | -11/Scrapyard | Entered Materials 246 | -10/Materials | Discovered new exit (range 4) 309 | -10/Materials | Build established: Mutant 378 | -10/Materials | Entered another Materials area 378 | -9/Materials | Evolved 2 slots: Propulsion x1, Utility x1 626 | -9/Materials | System corruption reached 10% 666 | -9/Materials | Lost 4 parts (1p1n2u) 784 | -9/Materials | Discovered new exit (range 4) 789 | -9/Materials | Entered Storage 855 | -9/Storage | Garrison activated, responded to threat 908 | -9/Storage | Lost 3 parts (1p1n1w) 951 | -9/Storage | Core integrity fell below 50% 1342 | -9/Storage | Garrison activated, responded to threat 1376 | -9/Storage | Core integrity fell below 20% 1381 | -9/Storage | Destroyed by Y-45 Defender with Heavy Assault Rifle Last Messages --------------- 01349_ K-01 Serf collects debris. 01350_ System corrupted: Lgt. Assault Rifle jammed. 01352_ K-01 Serf collects debris. 01355_ System corrupted: FCS attempts to trigger Lgt. Assault Rifle. 01355_ System corrupted: Lgt. Assault Rifle misfires. 01356_ Imp. Aluminum Leg destroyed. 01363_ Y-45 Defender destroyed. 01366_ Imp. Aluminum Leg destroyed. 01369_ Lgt. Assault Rifle destroyed. 01372_ Lgt. Treads destroyed. 01374_ R-06 Scavenger collects Heat Sink. 01375_ R-06 Scavenger destroyed. 01377_ System corrupted: Energy discharge (-19). 01377_ R-06 Scavenger collects Sml. Laser. 01378_ K-01 Serf collects debris. 01380_ R-06 Scavenger collects Flight Unit. 01381_ Critical hit (Burn: +37). Map ----- +----------------------------------------------------+ | ???# # """ ""????????# #?????????????????????? | | ???# # ????##??# ###???????????????????? | | ???# ############ #??# #T#???????????????????? | | ???# # ???# # "???????????????????? | | ???# # """"" """"" #?# + "???????????????????? | | ???# # """"" """"" #?# # "???????????????????? | | ???# # "" "" """" #?# ###???????????????????? | | ???# # #?# #?????????????????????? | | ???# # #?# #?????????????????????? | | ???# ##### ######## #?????????????????????? | | ???# #?????????????????????? | | ???# #?????????????????????? | | ???# #?????????????????????? | | ???# #####################?????????????????????? | | ???# # ##??????????????????????????????? | | ???# #* """ "#??????????????????????????????? | | ???# # """"?" ##??????????#####???????????????? | | ???# %# "????" #?########### #???????????????? | | ???# +% "????" #?# # #???????????????? | | ???# % # "?"""" #?# """ # #???????????????? | | ???# %# """ #?# " """" # #???????????????? | | ???# # #?# " "" " # #???????????????? | | ???# ############# " "" " + #???????????????? | | ???# #####"T"## ## """" " # #???????????????? | | ???# #/[[ % # ["""%Y# #???????????????? | | ???# #/ %""" # ==!@%r # #???????????????? | | ???# #/ G" #######Y### ##????????####??? | | ???# %# """ """ #?????#r## ########## ??? | | ???# + """ ####### ## ^ ??? | | ???# # """ / % T ??? | | ???# # ########## ^ ??? | | ???# ###"T"#" "###????????# #####+#### ??? | | ???# #?#"""#"T"#??????????### ### ### ??? | | ???# #?#####"""#????????????# ### ""# ??? | | ???# #?????#####????????????# ## ""# ??? | | ???# #??#################???# ### T"# ??? | | ???# #### ===#####T######???# #?#""" ""# ??? | | ???# ## # =#### " ##???# #?#""" ""# ??? | | ???# # " #### ##???# #?#""" ### ??? | | ???# # ==#### ######??## ### #?# ??? | | ???# # " ==####+########## ##""" ### ??? | | ???# + #!!==### ##""" + ??? | | ???# ########### ##""" ####+??? | | ???# #????????## """ ## # ??? | | ???# #?????????# "T" """ ########## ??? | | ???# #?????????????????????? ????????????????? | | ???# #?????????????????????? ????????????????? | | ???# #?????????????????????? ????????????????? | | ???# #?????????????????????????????????????????? | | ???# #?????????????????????????????????????????? | +----------------------------------------------------+ Best States ------------- Heat Dissipation 28 Energy Generation 12 Energy Capacity 265 Matter Stores 300 Matter Capacity 300 Sight Range 16 Terrain Scan Density 10 Armor Coverage 150 Evasion (%) 55 Targeting Accuracy 6 Recoil Reduction 1 Item Schematics ----------------- None Robot Schematics ------------------ None Fabricated ------------ Nothing Alien Tech Used ----------------- None Achievements -------------- It's Just You Challenges ------------ None Game ------ Seed FactoryPrecisionRecalibrator Manual? 0 Play Time 00:17:16 Cumulative 11.5 hours Start 2024.04.17 @ 21:06:13 End 2024.04.17 @ 21:20:33 Sessions 1 Manual Loads 0 Difficulty Rogue Special Mode None Game No. 13 Rogue 13 Adventurer 0 Explorer 0 Win Type - Total 0 Types 0/0/0/0/0/0/0/0/0 Lore% 5 Gallery% 18 Achievement% 14 Wizard Run 0 Options --------- Layout 1 ASCII 0 Keyboard 0 Movement Numpad Keybinds 0 Fullscreen 1 Font 24/Terminus Map View 50x35 Zoom Use 0% Tactical HUD 1 Map Filters NONE Filters NONE Steam 1 RUN: 43109a4c-2509-4778-a862-1e80d8076a3a